bitfinex-derivatives/quotes_BTCF0:USTF0_20250703
["timestamp","ask_amount","ask_price","bid_price","bid_amount"]
[1751584699533,0.43017136,109660.0,109650.0,0.9908351]
[1751584699734,0.43017136,109660.0,109650.0,1.23768616]
[1751584702131,0.43017136,109660.0,109650.0,0.9908351]
[1751584702332,0.43017136,109660.0,109650.0,1.23768616]
[1751584710946,0.43017136,109660.0,109650.0,0.9908351]
[1751584711140,0.43017136,109660.0,109650.0,1.23768616]
[1751584711438,0.67702242,109660.0,109650.0,1.23768616]
[1751584715047,0.1833203,109660.0,109650.0,1.23768616]
[1751584715347,0.43017136,109660.0,109650.0,1.23768616]
[1751584716245,0.43017136,109660.0,109650.0,2.06452616]
[1751584717541,0.43017136,109660.0,109650.0,2.13739316]
[1751584717944,0.43017136,109660.0,109650.0,2.06452616]
[1751584719047,0.43017136,109660.0,109650.0,1.70372616]
[1751584719247,0.67702242,109660.0,109650.0,1.71733083]
[1751584719949,0.43017136,109660.0,109650.0,1.71733193]
[1751584722149,0.43017136,109660.0,109650.0,1.47048087]
[1751584722350,0.43017136,109660.0,109650.0,1.71733193]
[1751584722952,0.43017136,109660.0,109650.0,1.71733501]
[1751584724153,0.43017136,109660.0,109650.0,1.47048395]
[1751584724452,0.43017136,109660.0,109650.0,1.71733501]
[1751584725549,0.43017136,109660.0,109650.0,1.69820126]
[1751584727155,0.43017136,109660.0,109650.0,1.4513502]
[1751584727356,0.43017136,109660.0,109650.0,1.69820126]
[1751584727654,0.43017136,109660.0,109650.0,1.69820605]
[1751584727856,0.43017136,109660.0,109650.0,1.77107305]
[1751584729052,0.43017136,109660.0,109650.0,1.78975665]
[1751584729560,0.43017136,109660.0,109650.0,1.75975665]
[1751584732761,0.43017136,109660.0,109650.0,1.7597561]
[1751584733065,0.43017136,109660.0,109650.0,1.8197561]
[1751584734062,0.43017136,109660.0,109650.0,0.9929161]
[1751584734262,0.43017136,109660.0,109650.0,1.8195561]
[1751584738363,0.43017136,109660.0,109650.0,0.74606504]
[1751584738569,0.67702242,109660.0,109650.0,1.34258504]
[1751584738768,0.1833203,109660.0,109650.0,1.34258504]
[1751584738962,0.67702242,109660.0,109650.0,1.55258504]
[1751584739868,0.67702242,109660.0,109650.0,1.7994361]
[1751584740367,0.67702242,109660.0,109650.0,1.55258504]
[1751584742967,0.67702242,109660.0,109650.0,1.7994361]
[1751584743373,0.67702242,109660.0,109650.0,1.78582301]
[1751584743869,0.67702242,109660.0,109650.0,1.53897195]
[1751584744769,0.1833203,109660.0,109650.0,1.53897195]
[1751584744971,0.67702242,109660.0,109650.0,1.53897195]
[1751584745469,0.71012242,109660.0,109650.0,1.53897195]
[1751584746965,0.71012242,109660.0,109650.0,0.40245195]
[1751584747170,1.07092242,109660.0,109650.0,0.43246695]
[1751584747468,1.10382242,109660.0,109650.0,0.43246695]
[1751584748170,1.12741633,109660.0,109650.0,0.06417945]
[1751584748565,1.16021633,109660.0,109650.0,0.06417945]
[1751584750469,1.16021633,109660.0,109650.0,0.0476836]
[1751584750672,1.16321633,109660.0,109650.0,0.0456836]
[1751584750860,1.16621633,109660.0,109650.0,0.0446836]
[1751584751064,1.63249633,109660.0,109650.0,0.4670205]
[1751584751361,0.80541633,109660.0,109650.0,0.4670205]
[1751584751566,0.70661633,109660.0,109650.0,0.4866369]
[1751584751770,0.45976527,109660.0,109650.0,0.79628796]
[1751584752163,0.21291421,109660.0,109650.0,0.79628796]
[1751584752362,0.45976527,109660.0,109650.0,0.82170369]
[1751584755778,0.70661633,109660.0,109650.0,0.57485263]
[1751584759180,0.70661633,109660.0,109650.0,0.58855901]
[1751584761680,0.70661633,109660.0,109650.0,0.31012211]
[1751584761870,0.76961633,109660.0,109650.0,0.31012211]
[1751584762273,0.27591421,109660.0,109650.0,0.49245871]
[1751584762474,0.76961633,109660.0,109650.0,0.58635871]
[1751584770190,0.76961633,109660.0,109650.0,0.13402211]
[1751584770378,0.27591421,109660.0,109650.0,0.07092211]
[1751584770580,0.76961633,109660.0,109650.0,0.07092211]
[1751584770789,0.27591421,109660.0,109650.0,0.07092211]
[1751584770990,0.80201633,109660.0,109650.0,0.04012211]
[1751584771190,0.30831421,109660.0,109650.0,0.04012211]
[1751584771493,0.80201633,109660.0,109650.0,0.04012211]
[1751584772392,0.80201633,109660.0,109650.0,0.02641573]
[1751584773294,0.30831421,109660.0,109650.0,0.02641573]
[1751584773495,0.80201633,109660.0,109650.0,0.02641573]
[1751584773889,0.80201633,109660.0,109650.0,0.26875233]
[1751584774089,0.76961633,109660.0,109650.0,0.29995233]
[1751584774389,0.76961633,109660.0,109650.0,0.36605233]
[1751584774596,0.76961633,109660.0,109650.0,0.29995233]
[1751584774896,0.80181633,109660.0,109650.0,0.26875233]
[1751584775296,0.80181633,109660.0,109650.0,0.08641573]
[1751584777299,0.80181633,109660.0,109650.0,0.26875233]
[1751584780201,0.80162059,109660.0,109650.0,0.26875233]
[1751584782902,0.80162059,109660.0,109650.0,0.28237853]
[1751584783698,0.80162059,109660.0,109650.0,0.28237861]
[1751584788099,0.80162059,109660.0,109650.0,0.10004201]
[1751584788500,0.80162059,109660.0,109650.0,0.13154201]
[1751584789807,0.80162059,109660.0,109650.0,0.52387861]
[1751584790006,0.80162059,109660.0,109650.0,0.34657861]
[1751584790305,0.73732059,109660.0,109650.0,0.34657861]
[1751584790500,0.73732059,109660.0,109650.0,0.37827861]
[1751584791102,0.73732059,109660.0,109650.0,0.32827861]
[1751584791905,0.73732059,109660.0,109650.0,0.60827861]
[1751584792308,0.73732059,109660.0,109650.0,0.37827861]
[1751584792703,0.73732059,109660.0,109650.0,0.36465233]
[1751584792911,0.73732059,109660.0,109650.0,0.37827895]
[1751584797914,0.73732059,109660.0,109650.0,0.31827895]
[1751584798108,0.73732059,109660.0,109650.0,0.32827895]
[1751584798417,0.73732059,109660.0,109650.0,0.60827895]
[1751584799315,0.73732059,109660.0,109650.0,0.31827895]
[1751584799516,0.73732059,109660.0,109650.0,0.59827895]
[1751584799712,0.70642059,109660.0,109650.0,0.59827895]
[1751584800013,0.70642059,109660.0,109650.0,0.84513001]
[1751584800812,0.70642059,109660.0,109650.0,0.59827895]
[1751584804016,0.21271847,109660.0,109650.0,0.59827895]
[1751584804216,0.70642059,109660.0,109650.0,0.59827895]
[1751584805518,0.21271847,109660.0,109650.0,0.59827895]
[1751584805817,0.70642059,109660.0,109650.0,0.59827895]
[1751584806718,0.70642059,109660.0,109650.0,0.84513001]
[1751584809524,0.70642059,109660.0,109650.0,0.59827895]
[1751584810020,0.70642059,109660.0,109650.0,0.59826992]
[1751584810519,0.21271847,109660.0,109650.0,0.59826992]
[1751584810824,0.70642059,109660.0,109650.0,0.59826992]
[1751584813126,0.70642059,109660.0,109650.0,0.56676992]
[1751584813327,0.70642059,109660.0,109650.0,0.59916992]
[1751584814926,0.70642059,109660.0,109650.0,0.31916992]
[1751584815126,0.73912059,109660.0,109650.0,0.31916992]
[1751584815324,0.77092059,109660.0,109650.0,0.31916992]
[1751584815835,0.77092059,109660.0,109650.0,0.31917065]
[1751584816634,0.77092059,109660.0,109650.0,0.28677065]
[1751584818030,0.77092059,109660.0,109650.0,0.31997065]
[1751584819328,0.77092059,109660.0,109650.0,0.32997065]
[1751584825233,0.77092059,109660.0,109650.0,0.32997145]
[1751584828232,0.77092059,109660.0,109650.0,0.32997212]
[1751584833538,0.74752242,109660.0,109650.0,0.32997212]
[1751584833739,0.7708319,109660.0,109650.0,0.32997212]
[1751584836642,0.7708319,109660.0,109650.0,0.29727212]
[1751584836938,0.8040319,109660.0,109650.0,0.26557212]
[1751584838238,0.8040319,109660.0,109650.0,0.05003552]
[1751584838443,1.1648319,109660.0,109650.0,0.05003552]
[1751584840457,1.1648319,109660.0,109650.0,0.05010258]
[1751584845457,1.1648319,109660.0,109650.0,0.23243908]
[1751584846456,1.1648319,109660.0,109650.0,0.05010258]
[1751584846657,1.1648319,109660.0,109650.0,0.05010615]
[1751584849957,1.1648319,109660.0,109650.0,0.23244275]
[1751584850957,1.1648319,109660.0,109650.0,0.05010615]
[1751584852664,1.1648319,109660.0,109650.0,0.05010293]
[1751584853365,1.1648319,109660.0,109650.0,0.23243953]
[1751584860564,1.1648319,109660.0,109650.0,0.05010293]
[1751584860969,1.1648319,109660.0,109650.0,0.23243953]
[1751584861472,1.1648319,109660.0,109650.0,0.05010293]
[1751584863771,1.1648319,109660.0,109650.0,0.05006932]
[1751584864167,1.1648319,109660.0,109650.0,0.26550582]
[1751584864367,1.1648319,109660.0,109650.0,0.08316932]
[1751584866172,1.1648319,109660.0,109650.0,0.05775359]
[1751584866372,1.1648319,109660.0,109650.0,0.02465359]
[1751584871071,0.67112978,109660.0,109650.0,0.20699019]
[1751584871277,1.1648319,109660.0,109650.0,0.20699019]
[1751584872777,1.1648319,109660.0,109650.0,0.1933366]
[1751584874079,1.1316319,109660.0,109650.0,0.1933366]
[1751584874377,1.1316319,109660.0,109650.0,0.2874366]
[1751584874775,1.0671319,109660.0,109650.0,0.2874366]
[1751584875478,1.0671319,109660.0,109650.0,0.82428766]
[1751584877382,1.0671319,109660.0,109650.0,0.5774366]
[1751584883784,1.0671319,109660.0,109650.0,0.5474366]
[1751584885187,0.1823365,109650.0,109640.0,0.0381198]
[1751584885490,1.07725983,109650.0,109640.0,0.01924896]
[1751584885694,0.1823532,109640.0,109630.0,0.05292398]
[1751584885887,0.6993648,109640.0,109630.0,0.42672398]
[1751584886086,0.6993648,109640.0,109630.0,0.440333]
[1751584886287,0.6983648,109640.0,109630.0,0.45977233]
[1751584887594,0.6993648,109640.0,109630.0,0.45977233]
[1751584887899,0.7003648,109640.0,109630.0,0.46077233]
[1751584888701,0.7003648,109640.0,109630.0,0.16077233]
[1751584888901,0.7317648,109640.0,109630.0,0.16077233]
[1751584889096,0.70845532,109640.0,109630.0,0.16077233]
[1751584890501,0.78074929,109640.0,109630.0,0.15077233]
[1751584891193,1.14154929,109640.0,109630.0,0.15077233]
[1751584891399,1.14154929,109640.0,109630.0,0.10119228]
[1751584891598,1.22823483,109640.0,109630.0,0.06919228]
[1751584891796,1.47508589,109640.0,109630.0,0.06919228]
[1751584892196,1.22823483,109640.0,109630.0,0.06919228]
[1751584892397,1.22823483,109640.0,109630.0,0.06937228]
[1751584892796,1.47508589,109640.0,109630.0,0.06937228]
[1751584893197,1.22823483,109640.0,109630.0,0.06937228]
[1751584893896,1.22822158,109640.0,109630.0,0.06937228]
[1751584894197,1.22822158,109640.0,109630.0,0.06940466]
[1751584894498,2.05558158,109640.0,109630.0,0.06934085]
[1751584894696,2.05558158,109640.0,109630.0,0.04996533]
[1751584894889,2.05558158,109640.0,109630.0,0.04996794]
[1751584899604,2.05555088,109640.0,109630.0,0.04996794]
[1751584899798,2.05555088,109640.0,109630.0,0.04995994]
[1751584901204,2.05555088,109640.0,109630.0,0.05000066]
[1751584901504,2.41635088,109640.0,109630.0,0.05000066]
[1751584904308,2.66320194,109640.0,109630.0,0.05004041]
[1751584905310,2.66319599,109640.0,109630.0,0.05004041]
[1751584905501,2.66319599,109640.0,109630.0,0.05010166]
[1751584905701,2.66519599,109640.0,109630.0,0.05010166]
[1751584906001,2.66619599,109640.0,109630.0,0.05010166]
[1751584906906,0.1823698,109630.0,109620.0,0.02180117]
[1751584907200,1.12827192,109630.0,109620.0,0.02180117]
[1751584907395,0.6345698,109630.0,109620.0,0.02180117]
[1751584907599,1.12827192,109630.0,109620.0,0.02180117]
[1751584908403,1.15210582,109630.0,109620.0,0.02180117]
[1751584909907,1.15310582,109630.0,109620.0,0.02180117]
[1751584910907,0.90625476,109630.0,109620.0,0.02180117]
[1751584911612,1.15310582,109630.0,109620.0,0.02180117]
[1751584912812,1.15310582,109630.0,109620.0,0.05400117]
[1751584913611,1.15310582,109630.0,109620.0,0.08430117]
[1751584914411,1.17038056,109630.0,109620.0,0.06725238]
[1751584914910,1.17038056,109630.0,109620.0,0.05411908]
[1751584915114,1.17038056,109630.0,109620.0,0.03695238]
[1751584918516,1.17038056,109630.0,109620.0,0.05470929]
[1751584918911,1.17038056,109630.0,109620.0,0.08287259]
[1751584923117,1.17038056,109630.0,109620.0,0.06511568]
[1751584924315,0.9235295,109630.0,109620.0,0.06511568]
[1751584924616,1.96902056,109630.0,109620.0,0.06511568]
[1751584924817,1.47531844,109630.0,109620.0,0.09652235]
[1751584925007,1.96902056,109630.0,109620.0,0.09652235]
[1751584925919,1.96937145,109630.0,109620.0,0.09652235]
[1751584929419,1.95174582,109630.0,109620.0,0.09652235]
[1751584929619,1.96898533,109630.0,109620.0,0.09652235]
[1751584930819,1.96898533,109630.0,109620.0,0.09652238]
[1751584933623,1.96913365,109630.0,109620.0,0.09652238]
[1751584936423,1.96913365,109630.0,109620.0,0.09654212]
[1751584936620,1.47543153,109630.0,109620.0,0.09654212]
[1751584936923,1.96913365,109630.0,109620.0,0.09654212]
[1751584937124,1.96913365,109630.0,109620.0,0.03294212]
[1751584937321,2.00073365,109630.0,109620.0,0.03294212]
[1751584938124,2.00073365,109630.0,109620.0,0.10294212]
[1751584938924,2.00098626,109630.0,109620.0,0.10294212]
[1751584940028,2.00098626,109630.0,109620.0,0.10300344]
[1751584941826,1.50728414,109630.0,109620.0,0.10300344]
[1751584942025,2.00098626,109630.0,109620.0,0.10300344]
[1751584944930,1.64018626,109630.0,109620.0,0.10300344]
[1751584945129,2.00098626,109630.0,109620.0,0.10300344]
[1751584945427,2.00078626,109630.0,109620.0,0.10300344]
[1751584945627,1.96918626,109630.0,109620.0,0.10300344]
[1751584945827,1.93908626,109630.0,109620.0,0.19530344]
[1751584946326,1.93908626,109630.0,109620.0,0.19530364]
[1751584946823,1.11044626,109630.0,109620.0,0.19530364]
[1751584947026,0.04247434,109630.0,109620.0,1.82219216]
[1751584947232,0.50150363,109640.0,109630.0,0.1823698]
[1751584947433,0.33801676,109660.0,109640.0,0.1823531]
[1751584947734,0.56593536,109660.0,109650.0,0.42918756]
[1751584948028,0.81278642,109660.0,109650.0,0.31659221]
[1751584948223,0.81278642,109660.0,109650.0,0.19659221]
[1751584948528,0.81278642,109660.0,109650.0,0.47659221]
[1751584949230,0.81578642,109660.0,109650.0,0.47659221]
[1751584949831,0.56612756,109660.0,109650.0,0.47659221]
[1751584950033,0.57012756,109660.0,109650.0,0.47659221]
[1751584950326,0.57612756,109660.0,109650.0,0.47659221]
[1751584953733,0.3290843,109660.0,109650.0,0.47659221]
[1751584953930,0.57612756,109660.0,109650.0,0.47659221]
[1751584954126,0.82317082,109660.0,109650.0,0.01425571]
[1751584954330,0.88607082,109660.0,109650.0,0.01425571]
[1751584954532,0.91657082,109660.0,109650.0,0.01425571]
[1751584955030,1.27737082,109660.0,109650.0,0.01425571]
[1751584957329,0.1823365,109650.0,109640.0,0.01884354]
[1751584957528,1.92880302,109650.0,109640.0,0.01884354]
[1751584957730,1.92880302,109650.0,109640.0,0.0324098]
[1751584958228,1.92880302,109650.0,109640.0,0.01884354]
[1751584958427,1.92880302,109650.0,109640.0,0.03246462]
[1751584959147,1.95118692,109650.0,109640.0,0.03246462]
[1751584959338,1.95418692,109650.0,109640.0,0.03246462]
[1751584959739,1.95818692,109650.0,109640.0,0.03246462]
[1751584960536,1.59738692,109650.0,109640.0,0.03246462]
[1751584960747,2.31898692,109650.0,109640.0,0.03246462]
[1751584962243,2.31898692,109650.0,109640.0,0.04668697]
[1751584963242,2.31898692,109650.0,109640.0,0.04668697]
[1751584969544,1.59738692,109650.0,109640.0,0.04668697]
[1751584969748,2.31898692,109650.0,109640.0,0.04668697]
[1751584970544,2.31898692,109650.0,109640.0,0.046772]
[1751584973551,2.31898692,109650.0,109640.0,0.04678062]
[1751584977758,2.31926482,109650.0,109640.0,0.04678062]
[1751584979554,2.31926482,109650.0,109640.0,0.04679664]
[1751584984765,2.31926482,109650.0,109640.0,0.02795317]
[1751584987756,0.1823531,109640.0,109630.0,0.08435136]
[1751584988059,1.05990142,109640.0,109630.0,0.1123288]
[1751584988256,1.05990142,109640.0,109630.0,0.11230046]
[1751584988562,1.05990142,109640.0,109630.0,0.09337744]
[1751584988961,1.05990142,109640.0,109630.0,0.14337744]
[1751584989164,1.06190142,109640.0,109630.0,0.11230046]
[1751584990169,1.06190142,109640.0,109630.0,0.17230046]
[1751584991073,1.06390142,109640.0,109630.0,0.17230046]
[1751584991665,1.06390142,109640.0,109630.0,0.11230046]
[1751584992374,1.13565348,109640.0,109630.0,0.11230046]
[1751584994073,1.13565348,109640.0,109630.0,0.16230046]
[1751584996178,1.13565348,109640.0,109630.0,0.11230046]
[1751584996778,1.13565348,109640.0,109630.0,0.11230133]
[1751585006286,0.28048906,109640.0,109630.0,0.91547103]
[1751585006483,0.77485348,109640.0,109630.0,1.14892906]
[1751585008286,0.77485348,109640.0,109630.0,0.90174685]
[1751585008788,0.75246958,109640.0,109630.0,0.90174685]
[1751585010089,1.13577489,109640.0,109630.0,0.11224513]
[1751585010489,1.4162571,109640.0,109630.0,0.11224513]
[1751585010689,1.4471571,109640.0,109630.0,0.11224513]
[1751585011389,1.4471571,109640.0,109630.0,0.04684513]
[1751585011594,1.4780571,109640.0,109630.0,0.04684513]
[1751585011785,0.98376065,109640.0,109630.0,0.04684513]
[1751585012285,0.98376065,109640.0,109630.0,0.04684643]
[1751585015196,1.00100059,109640.0,109630.0,0.04684643]
[1751585015683,1.01673819,109640.0,109630.0,0.04684643]
[1751585017082,0.1823698,109630.0,109620.0,0.00475238]
[1751585017282,1.95263547,109630.0,109620.0,0.00475238]
[1751585017588,1.70538529,109630.0,109620.0,0.00475238]
[1751585017788,1.95263547,109630.0,109620.0,0.00475238]
[1751585018494,1.95363547,109630.0,109620.0,0.00575238]
[1751585019090,1.95363547,109630.0,109620.0,0.00675238]
[1751585019395,1.95463547,109630.0,109620.0,0.00675238]
[1751585024893,1.95763547,109630.0,109620.0,0.00575238]
[1751585025994,1.96263547,109630.0,109620.0,0.00475238]
[1751585027596,0.0455996,109620.0,109590.0,0.13960614]
[1751585027798,0.42966988,109600.0,109590.0,0.52886094]
[1751585027998,0.42373867,109600.0,109590.0,0.52886094]
[1751585028300,0.42373867,109600.0,109590.0,0.54349234]
[1751585028796,0.42373867,109600.0,109590.0,0.54449234]
[1751585029197,0.42373867,109600.0,109590.0,0.55854773]
[1751585029392,0.42973867,109600.0,109590.0,0.55754773]
[1751585030795,0.43373867,109600.0,109590.0,0.54291633]
[1751585031600,0.43373867,109600.0,109590.0,0.55712362]
[1751585032601,0.18648849,109600.0,109590.0,0.55712362]
[1751585032800,0.43373867,109600.0,109590.0,0.55712362]
[1751585033303,0.43373867,109600.0,109590.0,0.57156496]
[1751585033803,0.43373867,109600.0,109590.0,0.57159012]
[1751585034505,0.43373867,109600.0,109590.0,0.93239012]
[1751585035905,0.18648849,109600.0,109590.0,0.93239012]
[1751585036204,0.43373867,109600.0,109590.0,0.93239012]
[1751585036604,0.18648849,109600.0,109590.0,0.93239012]
[1751585036909,0.43373867,109600.0,109590.0,0.9323441]
[1751585037406,0.43373867,109600.0,109590.0,0.5715441]
[1751585037598,0.43373867,109600.0,109590.0,0.9323441]
[1751585039802,0.43373867,109600.0,109590.0,0.9323253]
[1751585041909,0.43373867,109600.0,109590.0,0.93233073]
[1751585043311,0.45645923,109600.0,109590.0,0.93233073]
[1751585044909,0.45645923,109600.0,109590.0,0.83703073]
[1751585045211,0.3192878,109590.0,109580.0,0.48]
[1751585045418,0.1824526,109590.0,109580.0,1.96789338]
[1751585045601,0.3292573,109600.0,109590.0,0.1824363]
[1751585045802,0.03271689,109600.0,109590.0,1.69013666]
[1751585046004,0.24517904,109620.0,109610.0,0.182403]
[1751585046306,0.19956774,109620.0,109610.0,1.88249318]
[1751585046499,0.19956774,109620.0,109610.0,2.09634918]
[1751585047312,0.19956774,109620.0,109610.0,1.849099]
[1751585047515,0.19956774,109620.0,109610.0,2.09634918]
[1751585047811,0.1823864,109620.0,109610.0,1.921966]
[1751585048002,0.1843864,109620.0,109610.0,1.922966]
[1751585048198,0.1843864,109620.0,109610.0,1.850099]
[1751585048713,0.002,109620.0,109610.0,1.850099]
[1751585048910,0.1843863,109620.0,109610.0,1.922966]
[1751585050217,0.1843863,109620.0,109610.0,1.850099]
[1751585050407,0.1843863,109620.0,109610.0,2.180099]
[1751585050710,0.002,109620.0,109610.0,2.41734918]
[1751585051103,0.1823826,109630.0,109620.0,0.1823863]
[1751585051307,0.64014124,109640.0,109630.0,0.2013061]
[1751585051508,0.64014124,109640.0,109630.0,1.3253261]
[1751585052016,0.56838918,109640.0,109630.0,1.3253261]
[1751585052411,0.56838918,109640.0,109630.0,0.4922061]
[1751585052922,0.60588918,109640.0,109630.0,1.3262061]
[1751585053520,0.63738918,109640.0,109630.0,1.3262061]
[1751585054216,0.64138918,109640.0,109630.0,1.3272061]
[1751585054516,0.71565357,109640.0,109630.0,1.3272061]
[1751585054714,0.71565357,109640.0,109630.0,0.4942061]
[1751585056016,0.71565357,109640.0,109630.0,0.5088749]
[1751585056517,0.68415357,109640.0,109630.0,0.5088749]
[1751585057117,0.68415357,109640.0,109630.0,0.5413749]
[1751585057513,0.68415357,109640.0,109630.0,0.5088749]
[1751585057819,0.71595357,109640.0,109630.0,0.4779749]
[1751585058029,0.73854732,109640.0,109630.0,0.4779749]
[1751585058209,0.73854732,109640.0,109630.0,0.4879749]
[1751585058820,1.09934732,109640.0,109630.0,0.0209365]
[1751585060626,0.85209714,109640.0,109630.0,0.0209365]
[1751585060813,1.09934732,109640.0,109630.0,0.0209365]
[1751585062920,1.07675357,109640.0,109630.0,0.0209365]
[1751585067018,1.07675357,109640.0,109630.0,0.2533061]
[1751585068225,0.82950339,109640.0,109630.0,0.2533061]
[1751585068428,1.07675357,109640.0,109630.0,0.4733061]
[1751585068725,0.79770339,109640.0,109630.0,0.5368061]
[1751585068926,1.04495357,109640.0,109630.0,0.5368061]
[1751585072328,1.08475473,109640.0,109630.0,0.0209365]
[1751585072531,1.11645473,109640.0,109630.0,0.0209365]
[1751585075842,1.11645473,109640.0,109630.0,0.002]
[1751585078841,1.47725473,109640.0,109630.0,0.002]
[1751585095754,1.47725473,109640.0,109630.0,0.282]
[1751585095957,1.47725473,109640.0,109630.0,0.002]
[1751585096952,1.47725473,109640.0,109630.0,0.322]
[1751585097258,1.47725473,109640.0,109630.0,0.002]
[1751585097853,1.47725473,109640.0,109630.0,0.322]
[1751585098057,1.47725473,109640.0,109630.0,0.062]
[1751585098259,1.47725473,109640.0,109630.0,0.002]
[1751585099460,1.11645473,109640.0,109630.0,0.002]
[1751585100859,1.11645473,109640.0,109630.0,0.062]
[1751585101059,1.11645473,109640.0,109630.0,0.002]
[1751585101255,1.11645473,109640.0,109630.0,0.272]
[1751585101460,1.94765473,109640.0,109630.0,0.062]
[1751585101863,1.94765473,109640.0,109630.0,0.002]
[1751585102261,1.94765473,109640.0,109630.0,0.052]
[1751585103268,1.94765473,109640.0,109630.0,0.002]
[1751585104467,1.94765473,109640.0,109630.0,0.052]
[1751585106067,1.94765473,109640.0,109630.0,0.002]
[1751585106370,1.94765473,109640.0,109630.0,0.012]
[1751585107670,1.70040455,109640.0,109630.0,0.012]
[1751585107970,1.94765473,109640.0,109630.0,0.012]
[1751585110166,1.94765473,109640.0,109630.0,0.1943696]
[1751585110373,1.00666243,109640.0,109630.0,0.5278696]
[1751585110572,0.91548293,109640.0,109630.0,0.5596696]
[1751585114375,0.91559648,109640.0,109630.0,0.5596696]
[1751585117477,0.55479648,109640.0,109630.0,0.5596696]
[1751585117676,0.91559648,109640.0,109630.0,0.5596696]
[1751585120666,0.89286974,109640.0,109630.0,0.5596696]
[1751585121780,1.13985862,109640.0,109630.0,0.5596696]
[1751585122276,1.16258179,109640.0,109630.0,0.5596696]
[1751585122777,1.13985862,109640.0,109630.0,0.5596696]
[1751585125378,0.64561956,109640.0,109630.0,0.5596696]
[1751585125584,0.4576747,109640.0,109630.0,0.80678913]
[1751585125780,0.4576747,109640.0,109630.0,1.16678913]
[1751585126175,0.02818797,109640.0,109630.0,1.51758913]
[1751585126479,0.4576605,109640.0,109630.0,1.51758913]
[1751585127183,0.4576605,109640.0,109630.0,1.70001313]
[1751585127184,0.011,109640.0,109630.0,1.70001313]
[1751585127374,0.47504023,109650.0,109640.0,0.182353]
[1751585127577,0.47504023,109650.0,109640.0,1.17147253]
[1751585127780,0.47504023,109650.0,109640.0,2.00091253]
[1751585128585,0.48104023,109650.0,109640.0,2.00191253]
[1751585129786,0.2389207,109650.0,109640.0,1.755793]
[1751585132482,0.48596419,109650.0,109640.0,1.755793]
[1751585139810,0.51896419,109650.0,109640.0,1.755793]
[1751585147119,0.51896419,109650.0,109640.0,1.788693]
[1751585149716,0.51898046,109650.0,109640.0,2.03575276]
[1751585155215,0.54167568,109650.0,109640.0,2.03575276]
[1751585160531,0.29461592,109650.0,109640.0,2.03575276]
[1751585160719,0.54167568,109650.0,109640.0,2.03575276]
[1751585164834,0.50867568,109650.0,109640.0,2.03575276]
[1751585165133,0.48598046,109650.0,109640.0,2.10861976]
[1751585166132,0.48598046,109650.0,109640.0,1.86156]
[1751585166833,0.51628046,109650.0,109640.0,1.86156]
[1751585167333,0.76334022,109650.0,109640.0,1.03212]
[1751585167532,0.84983348,109650.0,109640.0,1.15052]
[1751585167833,0.84983348,109650.0,109640.0,0.504353]
[1751585168032,0.84983348,109650.0,109640.0,1.15052]
[1751585168333,1.21063348,109650.0,109640.0,0.83052]
[1751585168934,1.21063348,109650.0,109640.0,0.002]
[1751585171535,1.21063348,109650.0,109640.0,0.184353]
[1751585177038,1.21063348,109650.0,109640.0,0.234353]
[1751585177240,1.21063348,109650.0,109640.0,0.254353]
[1751585177938,1.21063348,109650.0,109640.0,0.184353]
[1751585178340,1.21063348,109650.0,109640.0,0.234353]
[1751585180039,1.21063348,109650.0,109640.0,0.184353]
[1751585180843,1.21063348,109650.0,109640.0,0.304353]
[1751585181142,1.21063348,109650.0,109640.0,0.184353]
[1751585181342,1.21063348,109650.0,109640.0,0.444353]
[1751585184841,1.21063348,109650.0,109640.0,0.184353]
[1751585185045,1.21063348,109650.0,109640.0,0.494353]
[1751585190748,1.21063348,109650.0,109640.0,0.527053]
[1751585190950,1.21063348,109650.0,109640.0,0.557253]
[1751585199457,0.84983348,109650.0,109640.0,0.557253]
[1751585199755,1.17933348,109650.0,109640.0,0.557253]
[1751585202351,1.17933348,109650.0,109640.0,0.247253]
[1751585204861,1.17926541,109650.0,109640.0,0.247253]
[1751585205364,1.17926541,109650.0,109640.0,0.297253]
[1751585205556,1.17926541,109650.0,109640.0,0.247253]
[1751585206261,0.81846541,109650.0,109640.0,0.247253]
[1751585206461,1.17926541,109650.0,109640.0,0.247253]
[1751585207763,1.21186541,109650.0,109640.0,0.247253]
[1751585209058,1.21186541,109650.0,109640.0,0.567253]
[1751585210159,0.85106541,109650.0,109640.0,0.567253]
[1751585210360,1.21186541,109650.0,109640.0,0.567253]
[1751585210562,1.21186685,109650.0,109640.0,0.567253]
[1751585211964,1.21186685,109650.0,109640.0,0.247253]
[1751585212166,1.21186685,109650.0,109640.0,0.557253]
[1751585212568,0.71774733,109650.0,109640.0,0.557253]
[1751585212768,1.17926685,109650.0,109640.0,0.557253]
[1751585212958,0.93220709,109650.0,109640.0,0.557253]
[1751585216866,0.86940709,109650.0,109640.0,0.80431276]
[1751585217168,0.50860709,109650.0,109640.0,1.19681276]
[1751585217969,0.26154733,109650.0,109640.0,1.19681276]
[1751585218165,0.1933366,109650.0,109640.0,1.82387252]
[1751585218468,0.1933366,109650.0,109640.0,2.34521952]
[1751585218667,0.1933364,109650.0,109640.0,2.66521952]
[1751585218869,0.44039616,109650.0,109640.0,2.66521952]
[1751585219262,0.44039616,109650.0,109640.0,2.59235252]
[1751585220566,0.44039616,109650.0,109640.0,2.66521952]
[1751585221667,0.25805976,109650.0,109640.0,2.34521952]
[1751585221875,0.1933364,109650.0,109640.0,2.34521952]
[1751585222062,0.006,109650.0,109640.0,2.34421952]
[1751585222267,0.1913364,109650.0,109640.0,2.34521952]
[1751585222565,0.1913364,109650.0,109640.0,2.27235252]
[1751585222974,0.43839616,109650.0,109640.0,2.27235252]
[1751585223174,0.43539616,109650.0,109640.0,2.27235252]
[1751585223775,0.25305976,109650.0,109640.0,2.27235252]
[1751585224476,0.43539616,109650.0,109640.0,2.27235252]
[1751585227173,0.43539616,109650.0,109640.0,2.34521952]
[1751585230277,0.43539616,109650.0,109640.0,2.09815976]
[1751585231476,0.43539616,109650.0,109640.0,2.11718897]
[1751585232176,0.43539616,109650.0,109640.0,2.34818897]
[1751585236975,0.43539616,109650.0,109640.0,2.27532197]
[1751585237976,0.1883364,109650.0,109640.0,2.27532197]
[1751585238183,0.43539616,109650.0,109640.0,2.27532197]
[1751585241278,0.43539616,109650.0,109640.0,1.44684197]
[1751585241583,0.43539616,109650.0,109640.0,2.27516197]
[1751585243188,0.43539616,109650.0,109640.0,1.19978221]
[1751585243381,0.43539616,109650.0,109640.0,2.02810221]
[1751585244185,0.46699616,109650.0,109640.0,2.02810221]
[1751585244388,0.71405592,109650.0,109640.0,0.51338221]
[1751585244587,0.7987805,109650.0,109640.0,1.34170221]
[1751585244783,0.7987805,109650.0,109640.0,0.11102921]
[1751585244784,0.79878027,109650.0,109640.0,0.11102921]
[1751585244989,1.15958027,109650.0,109640.0,0.84930921]
[1751585245185,1.15958027,109650.0,109640.0,0.02102921]
[1751585254195,0.66546075,109650.0,109640.0,0.02102921]
[1751585254494,1.15958027,109650.0,109640.0,0.20338221]
[1751585254790,1.15958027,109650.0,109640.0,0.02102921]